[Event "10th Sharjah Cup Women 2020"]
[Site "Sharjah"]
[Date "2020.01.11"]
[Round "8.20"]
[White "Shanya Mishra"]
[Black "Kanter, Elizaveta"]
[Result "1-0"]
[ECO "A59"]
[WhiteElo "1907"]
[BlackElo "1411"]
[Annotator "NA"]
[PlyCount "133"]
[EventDate "2020.01.04"]
[EventType "swiss"]
[EventCountry "UAE"]
[SourceTitle "playchess.com"]
[Source "ChessBase"]
[SourceQuality "1"]
[TimeControl "5400+30"]

1. d4 {[%emt 0:01:43]} Nf6 {[%emt 0:08:16]} 2. c4 {[%emt 0:00:05]} c5 {[%emt 0:00:25]} 3. d5 {[%emt 0:00:06]} b5 {[%emt 0:00:22]} 4. cxb5 {[%emt 0:00:06]} a6 {[%emt 0:00:26]} 5. bxa6 {[%emt 0:00:07]} Bxa6 {[%emt 0:00:23]} 6. Nc3 {[%emt 0:00:07]} g6 {[%emt 0:00:37]} 7. Nf3 {[%emt 0:00:13]} Bg7 {[%emt 0:00:23]} 8. e4 {[%emt 0:00:06]} Bxf1 {[%emt 0:00:56]} 9. Kxf1 {[%emt 0:00:06]} d6 {[%emt 0:01:21]} 10. g3 {[%emt 0:00:15]} O-O {[%emt 0:01:33]} 11. Kg2 {[%emt 0:01:05]} Nbd7 {[%emt 0:01:14]} 12. a4 {[%emt 0:02:27]} Qa5 {[%emt 0:01:57]} 13. Bd2 {[%emt 0:01:39]} Rfb8 {[%emt 0:02:27]} 14. Nb5 {[%emt 0:01:32]} Qb6 {[%emt 0:01:11]} 15. Qe2 {[%emt 0:01:58]} Ng4 {[%emt 0:05:35]} 16. Bc3 {[%emt 0:01:30]} Nge5 {[%emt 0:02:25]} 17. Nd2 {[%emt 0:04:13]} Nf8 {[%emt 0:07:40]} 18. f4 {[%emt 0:01:47]} Ned7 {[%emt 0:01:11]} 19. Nc4 {[%emt 0:01:10]} Qd8 {[%emt 0:02:29]} 20. Bxg7 {[%emt 0:04:55]} Kxg7 {[%emt 0:00:18]} 21. h4 {[%emt 0:00:48]} Nf6 {[%emt 0:07:16]} 22. b3 {[%emt 0:04:06]} Qd7 {[%emt 0:02:03]} 23. Rad1 {[%emt 0:02:47]} Qg4 {[%emt 0:05:30]} 24. Rhe1 {[%emt 0:09:06]} Rd8 {[%emt 0:02:24]} 25. Qxg4 {[%emt 0:07:34]} Nxg4 {[%emt 0:00:18]} 26. e5 {[%emt 0:00:20]} dxe5 {[%emt 0:02:37]} 27. fxe5 {[%emt 0:03:31]} Nd7 {[%emt 0:04:32]} 28. e6 {[%emt 0:02:18]} Ndf6 {[%emt 0:01:31]} 29. d6 {[%emt 0:01:39]} exd6 {[%emt 0:08:00]} 30. e7 {[%emt 0:01:18]} Rdb8 {[%emt 0:01:50]} 31. Ncxd6 {[%emt 0:00:40]} h5 {[%emt 0:08:19]} 32. Nc7 {[%emt 0:02:34]} Ra7 {[%emt 0:02:21]} 33. Ndb5 {[%emt 0:00:45]} Rab7 {[%emt 0:02:12]} 34. e8=Q {[%emt 0:00:17]} Nxe8 {[%emt 0:00:19]} 35. Nxe8+ {[%emt 0:00:13]} Kf8 {[%emt 0:00:36]} 36. Ned6 {[%emt 0:00:22]} Re7 {[%emt 0:00:50]} 37. Rxe7 {[%emt 0:01:04]} Kxe7 {[%emt 0:00:08]} 38. Re1+ {[%emt 0:00:07]} Kf8 {[%emt 0:00:27]} 39. a5 {[%emt 0:00:09]} Ra8 {[%emt 0:00:47]} 40. Nc4 {[%emt 0:00:42]} Nf6 {[%emt 0:00:38]} 41. Ra1 {[%emt 0:00:47]} Ra6 {[%emt 0:00:36]} 42. Nc7 {[%emt 0:00:21]} Ra7 {[%emt 0:00:50]} 43. a6 {[%emt 0:00:37]} Ke7 {[%emt 0:00:47]} 44. Nb5 {[%emt 0:00:09]} Ra8 {[%emt 0:01:18]} 45. Nb6 {[%emt 0:00:31]} Rd8 {[%emt 0:00:54]} 46. a7 {[%emt 0:00:06]} Rd2+ {[%emt 0:00:35]} 47. Kg1 {[%emt 0:00:07]} Rd8 {[%emt 0:00:21]} 48. a8=Q {[%emt 0:00:08]} Rxa8 {[%emt 0:00:10]} 49. Rxa8 {[%emt 0:00:04]} Ne4 {[%emt 0:00:19]} 50. Nd5+ {[%emt 0:00:20]} Ke6 {[%emt 0:00:22]} 51. Nbc7+ {[%emt 0:01:03]} Kd6 {[%emt 0:00:29]} 52. Kg2 {[%emt 0:00:24]} Nd2 {[%emt 0:00:35]} 53. Rd8+ {[%emt 0:00:32]} Kc6 {[%emt 0:00:28]} 54. Ne7+ {[%emt 0:00:05]} Kxc7 {[%emt 0:00:22]} 55. Rxd2 {[%emt 0:00:03]} Kb6 {[%emt 0:00:22]} 56. Kf3 {[%emt 0:00:10]} Kb5 {[%emt 0:00:15]} 57. Nd5 {[%emt 0:00:19]} c4 {[%emt 0:00:17]} 58. bxc4+ {[%emt 0:00:05]} Kxc4 {[%emt 0:00:08]} 59. Ke4 {[%emt 0:00:04]} f5+ {[%emt 0:00:22]} 60. Ke5 {[%emt 0:00:04]} Kc5 {[%emt 0:00:13]} 61. Rc2+ {[%emt 0:00:14]} Kb5 {[%emt 0:00:33]} 62. Kd4 {[%emt 0:00:19]} Ka6 {[%emt 0:00:21]} 63. Rb2 {[%emt 0:00:06]} Ka7 {[%emt 0:00:11]} 64. Kc5 {[%emt 0:00:15]} Ka6 {[%emt 0:00:16]} 65. Nc7+ {[%emt 0:00:10]} Ka7 {[%emt 0:00:11]} 66. Kc6 {[%emt 0:00:03]} f4 {[%emt 0:00:18]} 67. Rb7# {[%emt 0:00:04]} 1-0

[Event "10th Sharjah Cup Women 2020"]
[Site "Sharjah"]
[Date "2020.01.11"]
[Round "8.22"]
[White "Khalil, Hanan"]
[Black "Al-Fayyadh, Zainab Asif Abdulah"]
[Result "1-0"]
[ECO "C77"]
[WhiteElo "1360"]
[BlackElo "1646"]
[Annotator "NA"]
[PlyCount "117"]
[EventDate "2020.01.04"]
[EventType "swiss"]
[EventCountry "UAE"]
[SourceTitle "playchess.com"]
[Source "ChessBase"]
[SourceQuality "1"]
[TimeControl "5400+30"]

1. e4 {[%emt 0:00:00]} e5 {[%emt 0:00:00]} 2. Nf3 {[%emt 0:00:06]} Nc6 {[%emt 0:00:00]} 3. Bb5 a6 {[%emt 0:00:00]} 4. Ba4 {[%emt 0:00:58]} Nf6 {[%emt 0:00:00]} 5. d3 {[%emt 0:00:11]} b5 {[%emt 0:00:07]} 6. Bb3 {[%emt 0:00:21]} Be7 {[%emt 0:00:10]} 7. O-O {[%emt 0:00:15]} d6 {[%emt 0:00:40]} 8. c3 {[%emt 0:00:08]} O-O {[%emt 0:00:41]} 9. Nbd2 {[%emt 0:00:10]} Na5 {[%emt 0:00:34]} 10. Bc2 {[%emt 0:00:12]} c5 {[%emt 0:00:15]} 11. Re1 {[%emt 0:01:51]} Re8 {[%emt 0:06:26]} 12. Nf1 {[%emt 0:00:21]} Bf8 {[%emt 0:00:10]} 13. h3 {[%emt 0:09:42]} g6 {[%emt 0:00:52]} 14. Ng3 {[%emt 0:05:44]} Bg7 {[%emt 0:00:17]} 15. Nh2 {[%emt 0:01:22]} Bb7 {[%emt 0:03:54]} 16. Ng4 {[%emt 0:05:51]} b4 {[%emt 0:02:16]} 17. Bg5 {[%emt 0:03:36]} Bc8 {[%emt 0:04:18]} 18. Nh6+ {[%emt 0:03:46]} Kf8 {[%emt 0:01:05]} 19. cxb4 {[%emt 0:11:22]} cxb4 {[%emt 0:00:57]} 20. Bb3 {[%emt 0:00:32]} Be6 {[%emt 0:05:43]} 21. Bxe6 {[%emt 0:07:19]} Rxe6 {[%emt 0:00:22]} 22. Qa4 {[%emt 0:03:15]} Qb6 {[%emt 0:03:15]} 23. Rac1 {[%emt 0:02:04]} Qb5 {[%emt 0:15:28]} 24. Qxb5 {[%emt 0:08:13]} axb5 {[%emt 0:00:09]} 25. Rc7 {[%emt 0:00:02]} Re7 {[%emt 0:01:23]} 26. Rec1 {[%emt 0:01:25]} Rae8 {[%emt 0:01:06]} 27. Rxe7 {[%emt 0:04:00]} Rxe7 {[%emt 0:02:24]} 28. Ng4 {[%emt 0:00:11]} Re6 {[%emt 0:00:40]} 29. Nxf6 {[%emt 0:00:36]} Bxf6 {[%emt 0:00:16]} 30. Bd2 {[%emt 0:00:13]} Be7 {[%emt 0:09:18]} 31. Bxb4 {[%emt 0:00:15]} Nb7 {[%emt 0:00:20]} 32. Rc8+ {[%emt 0:03:49]} Kg7 {[%emt 0:04:37]} 33. Rb8 {[%emt 0:01:04]} Nc5 {[%emt 0:01:02]} 34. Bxc5 {[%emt 0:00:38]} dxc5 {[%emt 0:00:05]} 35. Rxb5 {[%emt 0:00:08]} Ra6 {[%emt 0:00:57]} 36. a3 {[%emt 0:00:47]} Rd6 {[%emt 0:02:01]} 37. Rxc5 {[%emt 0:05:42]} Rxd3 {[%emt 0:00:22]} 38. Rxe5 {[%emt 0:01:13]} Rd1+ {[%emt 0:00:48]} 39. Kh2 {[%emt 0:00:27]} Bf6 {[%emt 0:00:34]} 40. Rd5 {[%emt 0:01:41]} Rxd5 {[%emt 0:00:47]} 41. exd5 {[%emt 0:00:08]} Bxb2 {[%emt 0:00:06]} 42. a4 {[%emt 0:00:06]} Kf6 {[%emt 0:00:52]} 43. f4 {[%emt 0:03:05]} Bc1 {[%emt 0:01:03]} 44. Ne4+ {[%emt 0:04:22]} Ke7 {[%emt 0:01:18]} 45. Kg3 {[%emt 0:02:24]} h6 {[%emt 0:01:09]} 46. a5 {[%emt 0:00:28]} Be3 {[%emt 0:00:26]} 47. a6 {[%emt 0:00:23]} f5 {[%emt 0:00:22]} 48. Nc3 {[%emt 0:00:07]} Kd7 {[%emt 0:03:27]} 49. Nb5 {[%emt 0:00:23]} Kc8 {[%emt 0:00:19]} 50. a7 {[%emt 0:01:43]} Kb7 {[%emt 0:00:07]} 51. d6 {[%emt 0:00:09]} Bb6 {[%emt 0:00:17]} 52. d7 {[%emt 0:00:12]} Bd8 {[%emt 0:00:33]} 53. Kf3 {[%emt 0:00:21]} Ka8 {[%emt 0:00:31]} 54. Nd6 {[%emt 0:01:11]} Kxa7 {[%emt 0:01:29]} 55. Nf7 {[%emt 0:00:11]} Bf6 {[%emt 0:00:34]} 56. d8=Q {[%emt 0:00:10]} Bxd8 {[%emt 0:00:05]} 57. Nxd8 {[%emt 0:00:07]} Kb6 {[%emt 0:00:04]} 58. Nf7 {[%emt 0:00:09]} h5 {[%emt 0:00:13]} 59. Ne5 {[%emt 0:00:12]} 1-0

[Event "10th Sharjah Cup Women 2020"]
[Site "Sharjah"]
[Date "2020.01.11"]
[Round "8.23"]
[White "Mariam, Essa"]
[Black "Al-Moaamari, Mozah"]
[Result "1-0"]
[ECO "B34"]
[WhiteElo "1560"]
[BlackElo "1395"]
[Annotator "NA"]
[PlyCount "69"]
[EventDate "2020.01.04"]
[EventType "swiss"]
[EventCountry "UAE"]
[SourceTitle "playchess.com"]
[Source "ChessBase"]
[SourceQuality "1"]
[TimeControl "5400+30"]

1. e4 {[%emt 0:00:00]} c5 {[%emt 0:00:00]} 2. Nf3 {[%emt 0:00:00]} Nc6 {[%emt 0:00:00]} 3. d4 {[%emt 0:00:00]} cxd4 {[%emt 0:00:00]} 4. Nxd4 {[%emt 0:00:00]} g6 {[%emt 0:00:00]} 5. Nc3 {[%emt 0:00:00]} Bg7 {[%emt 0:00:00]} 6. Be3 {[%emt 0:00:07]} Nf6 {[%emt 0:00:05]} 7. Be2 {[%emt 0:00:36]} O-O {[%emt 0:00:51]} 8. Nb3 {[%emt 0:00:23]} d6 {[%emt 0:02:44]} 9. f4 {[%emt 0:03:09]} e6 {[%emt 0:08:09]} 10. g4 {[%emt 0:01:54]} Ne8 {[%emt 0:05:18]} 11. Qd2 {[%emt 0:05:01]} f5 {[%emt 0:04:48]} 12. exf5 {[%emt 0:01:13]} exf5 {[%emt 0:00:23]} 13. g5 {[%emt 0:00:34]} Be6 {[%emt 0:02:42]} 14. O-O-O {[%emt 0:01:05]} Na5 {[%emt 0:05:02]} 15. Bd4 {[%emt 0:04:53]} Nxb3+ {[%emt 0:04:24]} 16. axb3 {[%emt 0:05:31]} Qa5 {[%emt 0:09:06]} 17. Qe3 {[%emt 0:01:30]} Bf7 {[%emt 0:04:16]} 18. Bxg7 {[%emt 0:02:10]} Nxg7 {[%emt 0:06:38]} 19. Kb1 {[%emt 0:03:15]} Rfe8 {[%emt 0:03:52]} 20. Qf3 {[%emt 0:01:14]} Qb6 {[%emt 0:05:09]} 21. Nd5 {[%emt 0:02:45]} Bxd5 {[%emt 0:02:30]} 22. Qxd5+ {[%emt 0:00:06]} Kh8 {[%emt 0:00:36]} 23. Bc4 {[%emt 0:01:24]} Ne6 {[%emt 0:05:27]} 24. Rhe1 {[%emt 0:00:41]} Nxf4 {[%emt 0:11:13]} 25. Rxe8+ {[%emt 0:00:14]} Rxe8 {[%emt 0:00:11]} 26. Qf7 {[%emt 0:00:05]} Qd8 {[%emt 0:02:43]} 27. b4 {[%emt 0:01:16]} Qe7 {[%emt 0:05:33]} 28. Qf6+ {[%emt 0:02:01]} Qxf6 {[%emt 0:10:46]} 29. gxf6 {[%emt 0:00:08]} d5 {[%emt 0:00:35]} 30. Bxd5 {[%emt 0:03:38]} Rd8 {[%emt 0:00:38]} 31. c4 {[%emt 0:01:01]} Nh5 {[%emt 0:00:43]} 32. f7 {[%emt 0:00:42]} Kg7 {[%emt 0:00:17]} 33. Re1 {[%emt 0:00:11]} Nf4 {[%emt 0:01:14]} 34. Re8 {[%emt 0:00:36]} Nxd5 {[%emt 0:00:29]} 35. f8=Q# {[%emt 0:00:11]} 1-0

[Event "10th Sharjah Cup Women 2020"]
[Site "Sharjah"]
[Date "2020.01.12"]
[Round "9.1"]
[White "Assaubayeva, Bibisara"]
[Black "Socko, Monika"]
[Result "1/2-1/2"]
[ECO "A05"]
[WhiteElo "2375"]
[BlackElo "2413"]
[Annotator "ChessBase"]
[PlyCount "66"]
[EventDate "2020.01.04"]
[EventType "swiss"]
[EventCountry "UAE"]
[SourceTitle "playchess.com"]
[Source "ChessBase"]
[SourceQuality "1"]
[TimeControl "5400+30"]

1. Nf3 {[%emt 0:00:00]} Nf6 {[%emt 0:00:00]} 2. c4 {[%emt 0:00:00]} e6 {[%emt 0:00:00]} 3. g3 {[%emt 0:00:00]} d5 {[%emt 0:00:26]} 4. b3 {[%emt 0:00:00]} c5 {[%emt 0:02:58]} 5. Bg2 {[%emt 0:00:11]} Nc6 {[%emt 0:01:04]} 6. O-O {[%emt 0:00:13]} d4 {[%emt 0:02:21]} 7. e3 {[%emt 0:00:07]} e5 {[%emt 0:03:41]} 8. exd4 {[%emt 0:07:17]} exd4 {[%emt 0:00:29]} 9. Re1+ {[%emt 0:02:08]} Be7 {[%emt 0:00:04]} 10. d3 {[%emt 0:04:54]} O-O {[%emt 0:00:30]} 11. Bf4 {[%emt 0:03:40]} h6 {[%emt 0:11:45]} 12. Ne5 {[%emt 0:02:21]} Nxe5 {[%emt 0:02:20]} 13. Bxe5 {[%emt 0:00:09]} Bd6 {[%emt 0:01:59]} 14. Bxd6 {[%emt 0:05:15]} Qxd6 {[%emt 0:00:04]} 15. b4 {[%emt 0:04:49]} cxb4 {[%emt 0:01:33]} 16. a3 {[%emt 0:00:07]} Bg4 {[%emt 0:02:14]} 17. Qb3 {[%emt 0:00:54]} Rfe8 {[%emt 0:04:51]} 18. Rc1 {[%emt 0:04:03]} Re2 {[%emt 0:02:57]} 19. axb4 {[%emt 0:08:28]} Qe5 {[%emt 0:05:58]} 20. Rf1 {[%emt 0:03:00]} Qe6 {[%emt 0:06:43]} 21. Ra2 {[%emt 0:06:18]} Re8 {[%emt 0:13:12]} 22. Nd2 {[%emt 0:13:22]} Bh3 {[%emt 0:10:41]} 23. Ne4 {[%emt 0:03:43]} Rxa2 {[%emt 0:00:08]} 24. Nxf6+ {[%emt 0:04:30]} Qxf6 {[%emt 0:00:14]} 25. Qxa2 {[%emt 0:00:05]} Bxg2 {[%emt 0:00:08]} 26. Kxg2 {[%emt 0:00:06]} Qc6+ {[%emt 0:00:17]} 27. Kg1 {[%emt 0:05:39]} Qf3 {[%emt 0:00:04]} 28. Qxa7 {[%emt 0:03:14]} Qxd3 {[%emt 0:00:09]} 29. Qxb7 {[%emt 0:00:58]} Qxc4 {[%emt 0:02:30]} 30. b5 {[%emt 0:00:09]} d3 {[%emt 0:03:59]} 31. Qc6 {[%emt 0:04:07]} Qxc6 {[%emt 0:01:48]} 32. bxc6 {[%emt 0:00:03]} Rc8 {[%emt 0:00:04]} 33. Rd1 {[%emt 0:00:55]} Rxc6 {[%emt 0:00:09]} 1/2-1/2

[Event "10th Sharjah Cup Women 2020"]
[Site "Sharjah"]
[Date "2020.01.12"]
[Round "9.2"]
[White "Bulmaga, Irina"]
[Black "Nguyen, Thi Mai Hung"]
[Result "1-0"]
[ECO "C11"]
[WhiteElo "2446"]
[BlackElo "2254"]
[Annotator "ChessBase"]
[PlyCount "63"]
[EventDate "2020.01.04"]
[EventType "swiss"]
[EventCountry "UAE"]
[SourceTitle "playchess.com"]
[Source "ChessBase"]
[SourceQuality "1"]
[TimeControl "5400+30"]

1. e4 {[%emt 0:00:00]} e6 {[%emt 0:00:00]} 2. d4 {[%emt 0:00:00]} d5 {[%emt 0:00:00]} 3. Nc3 {[%emt 0:00:00]} Nf6 {[%emt 0:00:00]} 4. Bg5 {[%emt 0:00:00]} dxe4 {[%emt 0:00:08]} 5. Nxe4 {[%emt 0:00:02]} Nbd7 {[%emt 0:00:17]} 6. Nf3 {[%emt 0:00:09]} h6 {[%emt 0:01:06]} 7. Nxf6+ {[%emt 0:00:10]} Nxf6 {[%emt 0:00:08]} 8. Be3 {[%emt 0:00:06]} Nd5 {[%emt 0:00:11]} 9. Bd2 {[%emt 0:01:12]} Be7 {[%emt 0:06:36]} 10. Bd3 {[%emt 0:01:25]} O-O {[%emt 0:08:13]} 11. Qe2 {[%emt 0:02:49]} c5 {[%emt 0:03:29]} 12. dxc5 {[%emt 0:00:38]} Qc7 {[%emt 0:03:06]} 13. Ne5 {[%emt 0:11:10]} Bxc5 {[%emt 0:13:24]} 14. O-O-O {[%emt 0:02:15]} Rd8 {[%emt 0:03:05]} 15. f4 {[%emt 0:13:33]} b5 {[%emt 0:07:54]} 16. g4 {[%emt 0:05:15]} Bb7 {[%emt 0:01:16]} 17. g5 {[%emt 0:00:39]} hxg5 {[%emt 0:12:45]} 18. fxg5 {[%emt 0:01:41]} Bd4 {[%emt 0:06:43]} 19. Rhe1 {[%emt 0:03:04]} Bxe5 {[%emt 0:06:59]} 20. Qxe5 {[%emt 0:00:47]} Qxe5 {[%emt 0:00:07]} 21. Rxe5 {[%emt 0:00:08]} a6 {[%emt 0:00:03]} 22. g6 {[%emt 0:02:37]} Nf6 {[%emt 0:03:29]} 23. Rg1 {[%emt 0:04:45]} Bd5 {[%emt 0:04:44]} 24. gxf7+ {[%emt 0:01:50]} Kxf7 {[%emt 0:00:02]} 25. Reg5 {[%emt 0:03:23]} Ne8 {[%emt 0:02:27]} 26. Bc3 {[%emt 0:04:06]} Rac8 {[%emt 0:02:06]} 27. Bg6+ {[%emt 0:02:43]} Ke7 {[%emt 0:00:24]} 28. Bb4+ {[%emt 0:00:23]} Kf6 {[%emt 0:01:13]} 29. h4 {[%emt 0:01:41]} Nd6 {[%emt 0:03:51]} 30. Rf1+ {[%emt 0:00:30]} Nf5 {[%emt 0:01:42]} 31. Bxf5 {[%emt 0:00:18]} exf5 {[%emt 0:00:06]} 32. Rfxf5+ {[%emt 0:00:07]} 1-0

[Event "10th Sharjah Cup Women 2020"]
[Site "Sharjah"]
[Date "2020.01.12"]
[Round "9.3"]
[White "Abdulla, Khayala"]
[Black "Sukandar, Irine Kharisma"]
[Result "0-1"]
[ECO "B30"]
[WhiteElo "2275"]
[BlackElo "2402"]
[Annotator "ChessBase"]
[PlyCount "88"]
[EventDate "2020.01.04"]
[EventType "swiss"]
[EventCountry "UAE"]
[SourceTitle "playchess.com"]
[Source "ChessBase"]
[SourceQuality "1"]
[TimeControl "5400+30"]

1. e4 {[%emt 0:00:00]} c5 {[%emt 0:00:00]} 2. Nf3 {[%emt 0:00:00]} Nc6 {[%emt 0:00:08]} 3. Nc3 {[%emt 0:00:21]} e5 {[%emt 0:01:56]} 4. Bc4 {[%emt 0:06:22]} d6 {[%emt 0:00:22]} 5. d3 {[%emt 0:00:53]} Be7 {[%emt 0:01:06]} 6. O-O {[%emt 0:01:19]} Nf6 {[%emt 0:04:05]} 7. Nd5 {[%emt 0:00:45]} O-O {[%emt 0:05:20]} 8. c3 {[%emt 0:04:39]} Rb8 {[%emt 0:05:51]} 9. a4 {[%emt 0:01:19]} a6 {[%emt 0:00:35]} 10. Nxe7+ {[%emt 0:07:40]} Qxe7 {[%emt 0:00:44]} 11. Bg5 {[%emt 0:02:26]} h6 {[%emt 0:00:21]} 12. Bh4 {[%emt 0:03:46]} Be6 {[%emt 0:00:30]} 13. Nd2 {[%emt 0:02:19]} g5 {[%emt 0:10:26]} 14. Bg3 {[%emt 0:01:48]} b5 {[%emt 0:02:48]} 15. axb5 {[%emt 0:02:34]} axb5 {[%emt 0:00:06]} 16. Bb3 {[%emt 0:01:02]} Rfc8 {[%emt 0:05:52]} 17. Re1 {[%emt 0:04:10]} Ra8 {[%emt 0:09:45]} 18. Rxa8 {[%emt 0:04:20]} Rxa8 {[%emt 0:00:02]} 19. Nf1 {[%emt 0:00:18]} b4 {[%emt 0:10:35]} 20. Ne3 {[%emt 0:07:26]} bxc3 {[%emt 0:00:37]} 21. bxc3 {[%emt 0:00:08]} Ra3 {[%emt 0:00:16]} 22. Bd5 {[%emt 0:04:13]} Qd7 {[%emt 0:07:27]} 23. h4 {[%emt 0:21:03]} Bxd5 {[%emt 0:08:32]} 24. Nxd5 {[%emt 0:01:47]} Nxd5 {[%emt 0:01:13]} 25. exd5 {[%emt 0:00:01]} Ne7 {[%emt 0:00:08]} 26. Qc1 {[%emt 0:04:18]} Ra4 {[%emt 0:00:49]} 27. hxg5 {[%emt 0:01:29]} Rg4 {[%emt 0:03:00]} 28. gxh6 {[%emt 0:01:43]} f5 {[%emt 0:00:27]} 29. d4 {[%emt 0:07:53]} f4 {[%emt 0:00:14]} 30. dxe5 {[%emt 0:01:02]} fxg3 {[%emt 0:01:11]} 31. f3 {[%emt 0:00:02]} Rg6 {[%emt 0:00:44]} 32. e6 {[%emt 0:01:47]} Qa4 {[%emt 0:01:29]} 33. Qb2 {[%emt 0:03:48]} Qh4 {[%emt 0:02:16]} 34. Qb8+ {[%emt 0:00:04]} Kh7 {[%emt 0:00:06]} 35. Qf8 {[%emt 0:01:31]} Rxh6 {[%emt 0:02:35]} 36. Kf1 {[%emt 0:00:12]} Qg5 {[%emt 0:05:05]} 37. Kg1 {[%emt 0:01:55]} Rg6 {[%emt 0:01:25]} 38. f4 {[%emt 0:01:28]} Qh4 {[%emt 0:02:26]} 39. Kf1 {[%emt 0:00:50]} Rg8 {[%emt 0:01:00]} 40. Qf7+ {[%emt 0:00:18]} Rg7 {[%emt 0:00:06]} 41. Qf8 {[%emt 0:00:36]} Qh1+ {[%emt 0:00:37]} 42. Ke2 {[%emt 0:00:02]} Qxg2+ {[%emt 0:00:08]} 43. Kd1 {[%emt 0:00:09]} Qxd5+ {[%emt 0:00:46]} 44. Kc1 {[%emt 0:00:41]} g2 {[%emt 0:00:15]} 0-1

[Event "10th Sharjah Cup Women 2020"]
[Site "Sharjah"]
[Date "2020.01.12"]
[Round "9.4"]
[White "Zimina, Olga"]
[Black "Dordzhieva, Dinara"]
[Result "1-0"]
[ECO "A13"]
[WhiteElo "2367"]
[BlackElo "2326"]
[Annotator "ChessBase"]
[PlyCount "115"]
[EventDate "2020.01.04"]
[EventType "swiss"]
[EventCountry "UAE"]
[SourceTitle "playchess.com"]
[Source "ChessBase"]
[SourceQuality "1"]
[TimeControl "5400+30"]

1. c4 {[%emt 0:00:00]} Nf6 {[%emt 0:00:12]} 2. Nf3 {[%emt 0:00:00]} e6 {[%emt 0:00:09]} 3. g3 {[%emt 0:00:00]} d5 {[%emt 0:00:10]} 4. Bg2 {[%emt 0:00:00]} dxc4 {[%emt 0:00:10]} 5. Qa4+ {[%emt 0:00:06]} c6 {[%emt 0:00:05]} 6. Qxc4 {[%emt 0:00:03]} b5 {[%emt 0:00:04]} 7. Qb3 {[%emt 0:00:05]} Bb7 {[%emt 0:00:03]} 8. O-O {[%emt 0:00:09]} a6 {[%emt 0:00:04]} 9. Ne5 {[%emt 0:00:05]} Bc5 {[%emt 0:00:28]} 10. a4 {[%emt 0:01:14]} O-O {[%emt 0:00:14]} 11. d3 {[%emt 0:00:11]} Bd4 {[%emt 0:00:55]} 12. Nf3 {[%emt 0:00:39]} Bb6 {[%emt 0:00:08]} 13. Nc3 {[%emt 0:07:23]} Nbd7 {[%emt 0:00:57]} 14. Bf4 {[%emt 0:02:53]} Qe7 {[%emt 0:14:11]} 15. Rfc1 {[%emt 0:08:25]} Ng4 {[%emt 0:08:39]} 16. Nd1 {[%emt 0:01:17]} c5 {[%emt 0:01:16]} 17. axb5 {[%emt 0:02:49]} Bd5 {[%emt 0:01:36]} 18. Qa4 {[%emt 0:03:43]} axb5 {[%emt 0:22:39]} 19. Qxb5 {[%emt 0:00:45]} Rac8 {[%emt 0:00:30]} 20. Ne5 {[%emt 0:33:30]} Ngxe5 {[%emt 0:15:25]} 21. Bxe5 {[%emt 0:00:10]} c4 {[%emt 0:01:29]} 22. dxc4 {[%emt 0:08:26]} Rc5 {[%emt 0:01:38]} 23. Qb4 {[%emt 0:00:18]} Bxg2 {[%emt 0:03:45]} 24. Kxg2 {[%emt 0:00:04]} Nxe5 {[%emt 0:01:55]} 25. Qxb6 {[%emt 0:00:13]} Nxc4 {[%emt 0:05:26]} 26. Qb4 {[%emt 0:01:51]} Qc7 {[%emt 0:01:00]} 27. Kg1 {[%emt 0:02:22]} Rb8 {[%emt 0:01:19]} 28. Qc3 {[%emt 0:00:53]} Rc8 {[%emt 0:03:00]} 29. b3 {[%emt 0:05:18]} Nb6 {[%emt 0:00:58]} 30. Qxc5 {[%emt 0:00:06]} Qxc5 {[%emt 0:00:02]} 31. Rxc5 {[%emt 0:00:07]} Rxc5 {[%emt 0:00:01]} 32. Ne3 {[%emt 0:05:06]} Kf8 {[%emt 0:03:11]} 33. Ra7 {[%emt 0:02:41]} Nc8 {[%emt 0:03:08]} 34. Rb7 {[%emt 0:02:22]} Nd6 {[%emt 0:00:22]} 35. Rb8+ {[%emt 0:01:21]} Ke7 {[%emt 0:00:04]} 36. Kg2 {[%emt 0:00:34]} Kd7 {[%emt 0:02:31]} 37. g4 {[%emt 0:01:47]} Kc7 {[%emt 0:01:07]} 38. Rg8 {[%emt 0:06:31]} g6 {[%emt 0:00:23]} 39. Rg7 {[%emt 0:00:06]} h5 {[%emt 0:01:44]} 40. Nc4 {[%emt 0:00:11]} hxg4 {[%emt 0:08:17]} 41. Nxd6 {[%emt 0:00:16]} Kxd6 {[%emt 0:00:02]} 42. Rxf7 {[%emt 0:00:10]} Ke5 {[%emt 0:00:56]} 43. Rb7 {[%emt 0:01:19]} Rc2 {[%emt 0:00:11]} 44. e3 {[%emt 0:00:08]} Kf5 {[%emt 0:01:03]} 45. b4 {[%emt 0:00:28]} Rb2 {[%emt 0:00:02]} 46. b5 {[%emt 0:03:15]} Kf6 {[%emt 0:00:19]} 47. b6 {[%emt 0:00:09]} g5 {[%emt 0:00:08]} 48. Rb8 {[%emt 0:00:24]} Rb1 {[%emt 0:00:29]} 49. h3 {[%emt 0:03:05]} gxh3+ {[%emt 0:00:27]} 50. Kxh3 {[%emt 0:00:04]} Rb4 {[%emt 0:01:34]} 51. Kg3 {[%emt 0:00:18]} Kg7 {[%emt 0:00:25]} 52. b7 {[%emt 0:00:25]} Kh7 {[%emt 0:00:21]} 53. f3 {[%emt 0:00:29]} Kg7 {[%emt 0:00:36]} 54. e4 {[%emt 0:00:05]} Rb2 {[%emt 0:00:36]} 55. Kg4 {[%emt 0:00:14]} Rb5 {[%emt 0:00:07]} 56. e5 {[%emt 0:01:58]} Kh7 {[%emt 0:00:31]} 57. Kxg5 {[%emt 0:00:51]} Kg7 {[%emt 0:00:53]} 58. Kf4 {[%emt 0:00:42]} 1-0